fUSD/lending_fUSD_20250504
["ID","MTS","AMOUNT","RATE_DAILY","PERIOD"]
[359774449,1746324640899,-586.18,0.00019972,2]
[359774450,1746324640908,-450.0,0.00019972,2]
[359774451,1746324640918,-450.0,0.00019972,2]
[359774452,1746324640927,-157.40979507,0.00019972,2]
[359774453,1746324640938,-171.20750357,0.00019972,2]
[359774454,1746324640948,-153.29513429,0.00019972,2]
[359774455,1746324640958,-176.66136161,0.00019972,2]
[359774456,1746324640968,-2692.56,0.00019972,2]
[359774457,1746324640977,-450.0,0.00019972,2]
[359774458,1746324640987,-502.03445124,0.00019973,2]
[359774459,1746324640997,-500.0,0.00019973,2]
[359774460,1746324641007,-500.0,0.00019973,2]
[359774461,1746324641017,-284.54362884,0.00019973,2]
[359774462,1746324641026,-500.0,0.00019973,2]
[359774463,1746324641035,-500.0,0.00019973,2]
[359774464,1746324641044,-500.0,0.00019973,2]
[359774465,1746324641054,-524.31196993,0.00019973,2]
[359774466,1746324641064,-500.0,0.00019973,2]
[359774467,1746324641073,-718.2,0.00019983,2]
[359774468,1746324641082,-450.0,0.00019983,2]
[359774469,1746324641092,-450.0,0.00019983,2]
[359774470,1746324641101,-450.0,0.00019983,2]
[359774471,1746324641111,-450.0,0.00019983,2]
[359774472,1746324641120,-450.0,0.00019983,2]
[359774473,1746324641130,-450.0,0.00019983,2]
[359774474,1746324641139,-450.0,0.00019983,2]
[359774475,1746324641148,-450.0,0.00019983,2]
[359774476,1746324641158,-1695.62,0.00019983,2]
[359774477,1746324641167,-450.0,0.00019983,2]
[359774478,1746324641177,-765.69,0.00019983,2]
[359774479,1746324641186,-450.0,0.00019983,2]
[359774480,1746324641196,-450.0,0.00019983,2]
[359774481,1746324641205,-191.54577214,0.00019983,2]
[359774482,1746324641214,-450.0,0.00019983,2]
[359774483,1746324641223,-450.0,0.00019983,2]
[359774484,1746324641232,-450.0,0.00019983,2]
[359774485,1746324641242,-450.0,0.00019983,2]
[359774486,1746324641251,-450.0,0.00019983,2]
[359774487,1746324641260,-779.8,0.00019983,2]
[359774488,1746324641269,-273.53446169,0.00019983,2]
[359774489,1746324641279,-463.72,0.00019983,2]
[359774490,1746324641287,-450.0,0.00019983,2]
[359774491,1746324641297,-450.0,0.00019983,2]
[359774492,1746324641306,-909.38,0.00019983,2]
[359774493,1746324641315,-1220.3,0.00019983,2]
[359774494,1746324641323,-59604.64,0.00019983,2]
[359774495,1746324641333,-450.0,0.00019983,2]
[359774496,1746324641342,-450.0,0.00019983,2]
[359774497,1746324641351,-450.0,0.00019983,2]
[359774498,1746324641360,-450.0,0.00019983,2]
[359774499,1746324641369,-450.0,0.00019983,2]
[359774500,1746324641378,-595.94,0.00019983,2]
[359774501,1746324641387,-450.0,0.00019983,2]
[359774502,1746324641397,-450.0,0.00019983,2]
[359774503,1746324641406,-590.34,0.00019983,2]
[359774504,1746324641415,-450.0,0.00019983,2]
[359774505,1746324641424,-450.0,0.00019983,2]
[359774506,1746324641434,-450.0,0.00019983,2]
[359774507,1746324641448,-450.0,0.00019983,2]
[359774508,1746324641457,-450.0,0.00019983,2]
[359774509,1746324641466,-2619.87,0.00019983,2]
[359774510,1746324641475,-450.0,0.00019983,2]
[359774511,1746324641485,-450.0,0.00019983,2]
[359774512,1746324641494,-1267.37,0.00019983,2]
[359774513,1746324641503,-450.0,0.00019983,2]
[359774514,1746324641514,-460.71,0.00019983,2]
[359774515,1746324641523,-3197.13,0.00019983,2]
[359774516,1746324641533,-450.0,0.00019983,2]
[359774517,1746324641542,-450.0,0.00019983,2]
[359774518,1746324641551,-615.75,0.00019983,2]
[359774519,1746324641560,-450.0,0.00019983,2]
[359774520,1746324641570,-705.31,0.00019983,2]
[359774521,1746324641579,-450.0,0.00019983,2]
[359774522,1746324641588,-1465.18,0.00019983,2]
[359774523,1746324641597,-450.0,0.00019983,2]
[359774524,1746324641606,-3460.03,0.00019983,2]
[359774525,1746324641615,-450.0,0.00019983,2]
[359774526,1746324641625,-4006.01,0.00019983,2]
[359774527,1746324641634,-450.0,0.00019983,2]
[359774528,1746324641644,-494.87,0.00019983,2]
[359774529,1746324641653,-2752.0,0.00019983,2]
[359774530,1746324641662,-450.0,0.00019985,2]
[359774531,1746324641671,-450.0,0.00019985,2]
[359774532,1746324641680,-450.0,0.00019985,2]
[359774533,1746324641689,-642.53,0.00019985,2]
[359774534,1746324641698,-450.0,0.00019985,2]
[359774535,1746324641707,-450.0,0.00019985,2]
[359774536,1746324641716,-450.0,0.00019985,2]
[359774537,1746324641725,-450.0,0.00019985,2]
[359774538,1746324641734,-450.0,0.00019985,2]
[359774539,1746324641744,-450.0,0.00019985,2]
[359774540,1746324641755,-450.0,0.00019985,2]
[359774541,1746324641765,-450.0,0.00019985,2]
[359774542,1746324641774,-1589.7,0.00019985,2]
[359774543,1746324641783,-527.07,0.00019985,2]
[359774544,1746324641793,-450.0,0.00019985,2]
[359774545,1746324641802,-450.0,0.00019985,2]
[359774546,1746324641812,-975.53,0.00019985,2]
[359774547,1746324641822,-450.0,0.00019985,2]
[359774548,1746324641831,-2623.156,0.00019985,2]
[359774549,1746324641840,-167.141,0.00019985,2]
[359774550,1746324641849,-832.08,0.00019985,2]
[359774551,1746324641858,-450.0,0.00019985,2]
[359774552,1746324641867,-450.0,0.00019985,2]
[359774553,1746324641876,-450.0,0.00019985,2]
[359774554,1746324641886,-450.0,0.00019985,2]
[359774555,1746324641896,-450.0,0.00019985,2]
[359774556,1746324641906,-163.74134479,0.00019985,2]
[359774557,1746324641915,-422701.5105287,0.00019986,2]
[359774558,1746324641924,-32885.9557381,0.00019986,2]
[359774559,1746324641934,-10741.5720045,0.00019986,2]
[359774560,1746324641944,-812.23343656,0.0001999,2]
[359774561,1746324641954,-812.23343656,0.0001999,2]
[359774562,1746324641963,-812.23343656,0.0001999,2]
[359774563,1746324641973,-670.46897212,0.00019999,2]
[359774564,1746324641982,-300.0,0.00019999,2]
[359774565,1746324641992,-500.0,0.00019999,2]
[359774566,1746324642001,-300.0,0.00019999,2]
[359774567,1746324642010,-300.0,0.00019999,2]
[359774568,1746324642020,-500.0,0.00019999,2]
[359774569,1746324642030,-500.0,0.00019999,2]
[359774570,1746324642040,-500.0,0.00019999,2]
[359774571,1746324642050,-500.0,0.00019999,2]
[359774572,1746324642059,-500.0,0.00019999,2]
[359774573,1746324642069,-500.0,0.00019999,2]
[359774574,1746324642079,-482.22280828,0.00019999,2]
[359774575,1746324642089,-500.0,0.00019999,2]
[359774576,1746324642098,-500.0,0.00019999,2]
[359774577,1746324642107,-500.0,0.00019999,2]
[359774578,1746324642117,-266.97429626,0.00019999,2]
[359774579,1746324642126,-450.0,0.00019999,2]
[359774580,1746324642135,-233.59773999,0.00019999,2]
[359774581,1746324642149,-311.50156723,0.00019999,2]
[359774582,1746324642159,-181.1975835,0.00019999,2]
[359774583,1746324642168,-500.0,0.00019999,2]
[359774584,1746324642178,-666.0,0.00019999,2]
[359774585,1746324642187,-666.0,0.00019999,2]
[359774586,1746324642198,-500.0,0.00019999,2]
[359774587,1746324642207,-500.0,0.00019999,2]
[359774588,1746324642217,-377.98337964,0.00019999,2]
[359774589,1746324642226,-505.93,0.00019999,2]
[359774590,1746324642235,-1096.0,0.00019999,2]
[359774591,1746324642244,-1116.82702565,0.0002,2]
[359774592,1746324642253,-2831941.96112019,0.0002,2]
[359774593,1746324642263,-365590.3652192,0.0002,2]
[359774594,1746324642280,-832.00881008,0.0002,2]
[359774595,1746324642292,-136098.14056772,0.0002,2]
[359774596,1746324642303,-764.947,0.0002,2]
[359774597,1746324642314,-796.79953908,0.0002,2]
[359774606,1746324642819,-450.0,0.00019899,2]
[359774607,1746324642829,-1257.54595519,0.0002,2]
[359774608,1746324642839,-6314.43056171,0.0002,2]
[359774609,1746324642850,-782.10335714,0.0002,2]
[359774610,1746324642875,-7791.34558331,0.0002,2]
[359774611,1746324642888,-4291.94606349,0.0002,2]
[359774612,1746324642928,-393.48943086,0.0002,2]
[359774613,1746324642939,-12817.6468411,0.0002,2]
[359774614,1746324642950,-13430.91563927,0.0002,2]
[359774615,1746324642981,-5376.445856,0.0002,2]
[359774616,1746324642992,-841.09078813,0.0002,2]
[359774617,1746324643003,-735.915,0.0002,2]
[359774618,1746324643014,-7502.35497776,0.0002,2]
[359774619,1746324643025,-8393.81198358,0.0002,2]
[359774620,1746324643038,-31361.92882946,0.0002,2]
[359774621,1746324643058,-300.42878841,0.0002,2]
[359774622,1746324643070,-1165.30404382,0.0002,2]
[359774623,1746324643082,-8257.49922451,0.0002,2]
[359774624,1746324643093,-1121.145,0.0002,2]
[359774625,1746324643105,-542.66915189,0.0002,2]
[359774626,1746324643148,-1213.53305619,0.0002,2]
[359774627,1746324643159,-854.01624939,0.0002,2]
[359774705,1746324645799,-323.57617519,0.00019983,2]
[359774706,1746324645811,-126.42382481,0.00019983,2]
[359774707,1746324645821,-542.57617519,0.0002,2]
[359774708,1746324645930,-466.02798872,0.0002,2]
[359774709,1746324645941,-960.15060453,0.0002,2]
[359774710,1746324645984,-8841.96323617,0.0002,2]
[359774711,1746324646038,-5269.31431432,0.0002,2]
[359774712,1746324646049,-4744.79967454,0.0002,2]
[359774713,1746324646060,-645.12208,0.0002,2]
[359774714,1746324646071,-2523.70000002,0.0002,2]
[359774715,1746324646091,-3714.1999221,0.0002,2]
[359774719,1746324657849,862.4533,0.00019472,2]
[359774720,1746324668576,578.97,0.00019246,2]
[359774724,1746324757841,350.0,0.00032876,90]
[359774725,1746324782245,331.94,0.000298,31]
[359774726,1746324782286,331.94,0.000298,31]
[359774727,1746324782329,331.94,0.000298,31]
[359774728,1746324782388,331.94,0.000298,31]
[359774729,1746324782440,331.94,0.000298,31]
[359774730,1746324782497,331.94,0.000298,31]
[359774731,1746324782564,331.94,0.000298,31]
[359774732,1746324782619,331.94,0.000298,31]
[359774733,1746324782676,331.94,0.000298,31]
[359774734,1746324782752,331.94,0.000298,31]
[359774735,1746324782902,331.94,0.000298,31]
[359774736,1746324782970,331.94,0.000298,31]
[359774737,1746324783029,331.94,0.000298,31]
[359774738,1746324783089,331.94,0.000298,31]
[359774739,1746324783147,331.94,0.000298,31]
[359774740,1746324783210,331.94,0.000298,31]
[359774741,1746324840139,54122.18353584,0.0003,31]
[359774742,1746324851228,883.495899,0.0003,30]
[359774743,1746324869442,894.91026,0.0003,30]
[359774744,1746324950033,804.164195,0.0003,30]
[359774745,1746325028548,666.497236,7.945e-05,2]
[359774746,1746325029012,2115.56289008,0.000328,60]
[359774747,1746325048364,228.1231364,0.000328,60]
[359774748,1746325182828,291.78,0.00032877,60]
[359774749,1746325183079,2283.331376,0.00019419,2]
[359774750,1746325245991,153.48,0.00027397,30]
[359774751,1746325262789,1000.0,0.00018934,2]
[359774752,1746325333842,302.0,0.00032877,60]
[359774753,1746325394354,278.86,0.000298,31]
[359774754,1746325394411,278.86,0.000298,31]
[359774755,1746325394783,278.86,0.000298,31]
[359774756,1746325394826,278.86,0.000298,31]
[359774757,1746325394868,278.86,0.000298,31]
[359774758,1746325394921,278.86,0.000298,31]
[359774759,1746325394964,278.86,0.000298,31]
[359774760,1746325395008,278.86,0.000298,31]
[359774761,1746325395052,278.86,0.000298,31]
[359774762,1746325395113,278.86,0.000298,31]
[359774763,1746325395158,278.86,0.000298,31]
[359774764,1746325395196,278.86,0.000298,31]
[359774765,1746325395236,278.86,0.000298,31]
[359774766,1746325395279,278.86,0.000298,31]
[359774767,1746325395316,278.86,0.000298,31]
[359774768,1746325395366,278.86,0.000298,31]
[359774769,1746325414369,250.0,0.00017,2]
[359774770,1746325415433,300.0,0.00019,2]
[359774771,1746325516975,-153.4,0.00019518,2]
[359774772,1746325516998,-12.9218998,0.00019538,2]
[359774773,1746325524154,-237.0781002,0.00019538,2]
[359774774,1746325524177,-128.9169638,0.00019633,2]
[359774775,1746325530117,-121.0830362,0.00019633,2]
[359774776,1746325530142,-91.73499632,0.00019753,2]
[359774777,1746325534251,-277.2943916,0.00019753,2]
[359774778,1746325534833,331.68,0.00017019,2]
[359774779,1746325535062,331.68,0.00019283,2]
[359774780,1746325539690,-135.97061208,0.00019753,2]
[359774781,1746325539712,-17.26148457,0.00019799,2]
[359774782,1746325542935,-168.93919293,0.00019799,2]
[359774783,1746325542958,-73.49580697,0.000198,3]
[359774784,1746325545097,-80.08579722,0.000198,3]
[359774785,1746325545124,-88.85339571,0.00019838,2]
[359774786,1746325550440,-118.54660429,0.00019838,2]
[359774787,1746325550464,-151.74855907,0.00019849,2]
[359774789,1746325555461,-157.80154619,0.00019849,2]
[359774790,1746325558717,-161.9357653,0.0001975,2]
[359774791,1746325567769,-300.38,0.0001975,2]
[359774792,1746325571841,-343.213008,0.0001975,2]
[359774793,1746325580171,-200.0,0.00019651,2]
[359774794,1746325586250,-161.33106,0.00019651,2]
[359774795,1746325591624,-275.64311037,0.00019651,2]
[359774796,1746325594751,-219.81282163,0.00019651,2]
[359774825,1746325634134,302.56,0.00018948,2]
[359774835,1746325711337,289.48,0.00018943,2]
[359774858,1746325832200,-772.202035,0.00019651,2]
[359774859,1746325832210,-1599.22356625,0.0001975,2]
[359774860,1746325832220,-207.4,0.00019838,2]
[359774861,1746325832229,-1200.0,0.00019849,2]
[359774862,1746325832238,-300.0,0.00019849,2]
[359774863,1746325832248,-10110.93461262,0.0001985,2]
[359774864,1746325832258,-678.2487,0.00019871,2]
[359774865,1746325832267,-2385.29169598,0.00019871,2]
[359774866,1746325832276,-2385.29169595,0.00019874,2]
[359774867,1746325832286,-2385.29169595,0.00019877,2]
[359774868,1746325832295,-2385.29169595,0.00019881,2]
[359774869,1746325832304,-2385.29169595,0.00019884,2]
[359774870,1746325832314,-2385.29169595,0.00019887,2]
[359774871,1746325832323,-179.49894891,0.0001989,2]
[359774872,1746325832333,-2385.29169595,0.0001989,2]
[359774873,1746325832342,-2385.29169595,0.00019894,2]
[359774874,1746325832351,-1053.93329988,0.00019897,2]
[359774889,1746325838250,-1331.35839607,0.00019897,2]
[359774890,1746325838260,-806.44166393,0.00019897,2]
[359774891,1746325838272,-240.7770356,0.00019897,2]
[359774892,1746325838281,-1605.42296459,0.00019897,2]
[359774893,1746325838292,-450.5296458,0.00019897,2]
[359774894,1746325838302,-287.0203545,0.00019898,2]
[359774920,1746325840150,-450.0,0.00019898,2]
[359774922,1746325840160,-404.55328028,0.00019898,2]
[359774923,1746325840171,-45.44671972,0.00019898,2]
[359774925,1746325840181,-450.0,0.00019898,2]
[359774926,1746325840191,-450.0,0.00019898,2]
[359774928,1746325840202,-85.57828034,0.00019898,2]
[359774930,1746325840219,-731.18171966,0.00019898,2]
[359774932,1746325840228,-450.0,0.00019898,2]
[359774933,1746325840238,-465.63,0.00019898,2]
[359774935,1746325840247,-450.0,0.00019898,2]
[359774937,1746325840256,-450.0,0.00019898,2]
[359774938,1746325840266,-972.19,0.00019898,2]
[359774940,1746325840275,-450.0,0.00019898,2]
[359774942,1746325840285,-450.0,0.00019898,2]
[359774944,1746325840294,-559.3,0.00019898,2]
[359774945,1746325840303,-450.0,0.00019898,2]
[359774947,1746325840312,-450.0,0.00019898,2]
[359774948,1746325840322,-450.0,0.00019898,2]
[359774949,1746325840331,-450.0,0.00019898,2]
[359774950,1746325840340,-450.0,0.00019898,2]
[359774951,1746325840350,-1744.91,0.00019898,2]
[359774952,1746325840359,-450.0,0.00019898,2]
[359774953,1746325840369,-766.81,0.00019898,2]
[359774954,1746325840378,-450.0,0.00019898,2]
[359774955,1746325840387,-450.0,0.00019898,2]
[359774956,1746325840396,-1575.76,0.00019898,2]
[359774957,1746325840405,-470.73848634,0.00019899,2]
[359774958,1746325840414,-450.0,0.00019899,2]
[359774959,1746325840424,-151.600141,0.00019899,2]
[359774960,1746325840433,-500.0,0.00019899,2]
[359774961,1746325840442,-150.0,0.00019899,2]
[359774962,1746325840451,-500.0,0.00019899,2]
[359774963,1746325840461,-500.0,0.00019899,2]
[359774964,1746325840470,-150.0,0.00019899,2]
[359774965,1746325840479,-10088.77326334,0.000199,2]
[359774966,1746325840489,-2075.46,0.000199,2]
[359774967,1746325840498,-168.36986907,0.000199,2]
[359774968,1746325840507,-704.22,0.000199,2]
[359774969,1746325840517,-451.0,0.000199,2]
[359774970,1746325840527,-474.96,0.000199,2]
[359774971,1746325840537,-800.22,0.000199,2]
[359774972,1746325840546,-150.0,0.000199,2]
[359774973,1746325840556,-307.05,0.000199,2]
[359774974,1746325840565,-2385.29169595,0.000199,2]
[359774975,1746325840575,-179.49894891,0.000199,2]
[359774976,1746325840584,-3758.0384395,0.000199,2]
[359774977,1746325840593,-645.75790586,0.000199,2]
[359774978,1746325840602,-220.09332248,0.000199,2]
[359774979,1746325840611,-9500.17909627,0.000199,2]
[359774980,1746325840620,-181.17672563,0.000199,2]
[359774981,1746325840629,-500.0,0.00019945,2]
[359774982,1746325840640,-343.91194254,0.00019959,2]
[359774983,1746325840650,-450.0,0.00019971,2]
[359774984,1746325840659,-584.93,0.00019971,2]
[359774985,1746325840668,-450.0,0.00019971,2]
[359774986,1746325840677,-450.0,0.00019971,2]
[359774987,1746325840686,-450.0,0.00019971,2]
[359774988,1746325840697,-450.0,0.00019971,2]
[359774989,1746325840706,-450.0,0.00019971,2]
[359774990,1746325840715,-450.0,0.00019971,2]
[359774991,1746325840725,-450.0,0.00019971,2]
[359774992,1746325840734,-450.0,0.00019971,2]
[359774993,1746325840743,-450.0,0.00019971,2]
[359774994,1746325840752,-450.0,0.00019971,2]
[359774995,1746325840761,-466.66398239,0.00019971,2]
[359774996,1746325840769,-450.0,0.00019971,2]
[359774997,1746325840778,-450.0,0.00019971,2]
[359774998,1746325840787,-450.0,0.00019971,2]
[359774999,1746325840796,-450.0,0.00019971,2]
[359775000,1746325840806,-450.0,0.00019971,2]
[359775001,1746325840817,-1624.97,0.00019971,2]
[359775002,1746325840826,-450.0,0.00019971,2]
[359775003,1746325840837,-450.0,0.00019971,2]
[359775004,1746325840846,-536.62,0.00019971,2]
[359775005,1746325840857,-450.0,0.00019971,2]
[359775006,1746325840866,-450.0,0.00019971,2]
[359775007,1746325840876,-450.0,0.00019971,2]
[359775008,1746325840885,-450.0,0.00019971,2]
[359775009,1746325840894,-1169.45,0.00019971,2]
[359775010,1746325840903,-450.0,0.00019971,2]
[359775011,1746325840912,-450.0,0.00019971,2]
[359775012,1746325840921,-450.0,0.00019971,2]
[359775013,1746325840931,-450.0,0.00019971,2]
[359775014,1746325840939,-450.0,0.00019971,2]
[359775015,1746325840950,-450.0,0.00019971,2]
[359775016,1746325840958,-450.0,0.00019971,2]
[359775017,1746325840967,-450.0,0.00019971,2]
[359775018,1746325840976,-450.0,0.00019971,2]
[359775019,1746325840986,-450.0,0.00019971,2]
[359775020,1746325840995,-450.0,0.00019971,2]
[359775021,1746325841004,-450.0,0.00019971,2]
[359775022,1746325841013,-450.0,0.00019971,2]
[359775023,1746325841022,-450.0,0.00019971,2]
[359775024,1746325841030,-363.53218527,0.00019971,2]
[359775025,1746325841039,-450.0,0.00019971,2]
[359775026,1746325841047,-512.72,0.00019971,2]
[359775027,1746325841057,-527.32,0.00019971,2]
[359775028,1746325841066,-450.0,0.00019971,2]
[359775029,1746325841075,-565.82,0.00019971,2]
[359775030,1746325841084,-450.0,0.00019971,2]
[359775031,1746325841093,-663.53,0.00019971,2]
[359775032,1746325841103,-500.0,0.00019973,2]
[359775033,1746325841111,-596.9165218,0.00019973,2]
[359775034,1746325841120,-500.0,0.00019973,2]
[359775035,1746325841129,-500.0,0.00019973,2]
[359775036,1746325841138,-502.01494298,0.00019973,2]
[359775037,1746325841151,-500.0,0.00019973,2]
[359775038,1746325841160,-182.42116604,0.00019974,2]
[359775039,1746325841170,-151.0,0.00019974,2]
[359775040,1746325841180,-450.0,0.00019984,2]
[359775041,1746325841189,-450.0,0.00019984,2]
[359775042,1746325841201,-718.2,0.00019984,2]
[359775043,1746325841211,-450.0,0.00019984,2]
[359775044,1746325841222,-450.0,0.00019984,2]
[359775045,1746325841231,-450.0,0.00019984,2]
[359775046,1746325841241,-450.0,0.00019984,2]
[359775047,1746325841251,-450.0,0.00019984,2]
[359775048,1746325841260,-765.69,0.00019984,2]
[359775049,1746325841270,-450.0,0.00019984,2]
[359775050,1746325841279,-191.54577214,0.00019984,2]
[359775051,1746325841288,-450.0,0.00019984,2]
[359775052,1746325841297,-450.0,0.00019984,2]
[359775053,1746325841306,-450.0,0.00019984,2]
[359775054,1746325841316,-450.0,0.00019984,2]
[359775055,1746325841325,-450.0,0.00019984,2]
[359775056,1746325841334,-871.49,0.00019984,2]
[359775057,1746325841343,-450.0,0.00019984,2]
[359775058,1746325841353,-502.12714898,0.00019984,2]
[359775059,1746325841362,-450.0,0.00019984,2]
[359775060,1746325841371,-450.0,0.00019984,2]
[359775061,1746325841381,-450.0,0.00019984,2]
[359775062,1746325841391,-59604.64,0.00019984,2]
[359775063,1746325841401,-450.0,0.00019984,2]
[359775064,1746325841410,-450.0,0.00019984,2]
[359775065,1746325841419,-450.0,0.00019984,2]
[359775066,1746325841429,-450.0,0.00019984,2]
[359775067,1746325841438,-3831.85,0.00019984,2]
[359775068,1746325841448,-450.0,0.00019984,2]
[359775069,1746325841458,-450.0,0.00019984,2]
[359775070,1746325841467,-450.0,0.00019984,2]
[359775071,1746325841476,-450.0,0.00019984,2]
[359775072,1746325841485,-3063.91,0.00019984,2]
[359775073,1746325841494,-590.34,0.00019984,2]
[359775074,1746325841503,-561.76,0.00019984,2]
[359775075,1746325841513,-450.0,0.00019984,2]
[359775076,1746325841522,-450.0,0.00019984,2]
[359775077,1746325841531,-450.0,0.00019984,2]
[359775078,1746325841541,-2619.87,0.00019984,2]
[359775079,1746325841550,-450.0,0.00019984,2]
[359775080,1746325841559,-1301.7,0.00019984,2]
[359775081,1746325841569,-450.0,0.00019984,2]
[359775082,1746325841578,-636.76,0.00019984,2]
[359775083,1746325841587,-1267.37,0.00019984,2]
[359775084,1746325841596,-450.0,0.00019984,2]
[359775085,1746325841605,-1465.18,0.00019984,2]
[359775086,1746325841614,-450.0,0.00019984,2]
[359775087,1746325841623,-450.0,0.00019984,2]
[359775088,1746325841632,-450.0,0.00019984,2]
[359775089,1746325841641,-2580.37,0.00019984,2]
[359775090,1746325841651,-677.14,0.00019984,2]
[359775091,1746325841660,-494.87,0.00019984,2]
[359775092,1746325841668,-3460.03,0.00019984,2]
[359775093,1746325841678,-969.59,0.00019984,2]
[359775094,1746325841687,-450.0,0.00019984,2]
[359775095,1746325841696,-3839.09,0.00019984,2]
[359775096,1746325841705,-450.0,0.00019985,2]
[359775097,1746325841714,-450.0,0.00019985,2]
[359775098,1746325841723,-450.0,0.00019985,2]
[359775099,1746325841732,-450.0,0.00019985,2]
[359775100,1746325841741,-450.0,0.00019985,2]
[359775101,1746325841750,-1657.92,0.00019985,2]
[359775102,1746325841759,-450.0,0.00019985,2]
[359775103,1746325841768,-450.0,0.00019985,2]
[359775104,1746325841777,-450.0,0.00019985,2]
[359775105,1746325841786,-480.0833098,0.00019985,2]
[359775106,1746325841795,-450.0,0.00019985,2]
[359775107,1746325841804,-450.0,0.00019985,2]
[359775108,1746325841813,-454.23,0.00019985,2]
[359775109,1746325841822,-502.26,0.00019985,2]
[359775110,1746325841830,-450.0,0.00019985,2]
[359775111,1746325841839,-450.0,0.00019985,2]
[359775112,1746325841848,-480.07862017,0.00019985,2]
[359775113,1746325841857,-472.35012035,0.00019985,2]
[359775114,1746325841867,-450.0,0.00019985,2]
[359775115,1746325841876,-450.0,0.00019985,2]
[359775116,1746325841886,-450.0,0.00019985,2]
[359775117,1746325841896,-459.30873225,0.00019985,2]
[359775118,1746325841905,-495.7296534,0.00019985,2]
[359775119,1746325841914,-450.0,0.00019985,2]
[359775120,1746325841923,-450.0,0.00019985,2]
[359775121,1746325841932,-450.0,0.00019985,2]
[359775122,1746325841942,-450.0,0.00019985,2]
[359775123,1746325841951,-450.0,0.00019985,2]
[359775124,1746325841959,-450.0,0.00019985,2]
[359775125,1746325841969,-450.0,0.00019985,2]
[359775126,1746325841979,-450.0,0.00019985,2]
[359775127,1746325841988,-450.0,0.00019985,2]
[359775128,1746325841998,-570.94,0.00019985,2]
[359775129,1746325842007,-666.17,0.00019985,2]
[359775130,1746325842016,-459.46449075,0.00019985,2]
[359775131,1746325842025,-179.5271861,0.00019985,2]
[359775132,1746325842034,-462.39,0.00019985,2]
[359775133,1746325842043,-450.0,0.00019985,2]
[359775134,1746325842052,-469.68426347,0.00019985,2]
[359775135,1746325842062,-450.0,0.00019985,2]
[359775136,1746325842071,-479.1396632,0.00019985,2]
[359775137,1746325842080,-450.0,0.00019985,2]
[359775138,1746325842089,-376.23674134,0.00019985,2]
[359775139,1746325842098,-450.0,0.00019985,2]
[359775140,1746325842107,-450.0,0.00019985,2]
[359775141,1746325842115,-450.0,0.00019985,2]
[359775142,1746325842125,-450.0,0.00019985,2]
[359775143,1746325842134,-450.0,0.00019985,2]
[359775144,1746325842144,-908.52,0.00019985,2]
[359775145,1746325842156,-450.0,0.00019985,2]
[359775146,1746325842165,-884.81,0.00019985,2]
[359775147,1746325842174,-450.0,0.00019985,2]
[359775148,1746325842182,-478.3,0.00019985,2]
[359775149,1746325842191,-450.0,0.00019985,2]